fUST/lending_fUST_20241204
["ID","MTS","AMOUNT","RATE_DAILY","PERIOD"]
[344064436,1733268677090,-714.18,0.00030136,7]
[344064437,1733268677100,-664.32,0.00030136,7]
[344064438,1733268677109,-2256.04,0.00030136,7]
[344064439,1733268677119,-587.26,0.00030136,7]
[344064440,1733268677128,-500.0,0.00030136,7]
[344064441,1733268677137,-638.54,0.00030136,7]
[344064442,1733268677146,-500.0,0.00030136,7]
[344064443,1733268677155,-714.18,0.00030136,7]
[344064444,1733268677164,-664.32,0.00030136,7]
[344064445,1733268677174,-2256.04,0.00030136,7]
[344064446,1733268677188,-587.26,0.00030136,7]
[344064447,1733268677197,-714.18,0.00030136,7]
[344064448,1733268677207,-638.54,0.00030136,7]
[344064449,1733268677216,-500.0,0.00030136,7]
[344064450,1733268677226,-500.0,0.00030136,7]
[344064451,1733268677236,-664.32,0.00030136,7]
[344064452,1733268677245,-2256.04,0.00030136,7]
[344064453,1733268677255,-587.26,0.00030136,7]
[344064454,1733268677264,-714.18,0.00030136,7]
[344064455,1733268677274,-180.66951272,0.00030136,7]
[344064456,1733268677283,-638.54,0.00030136,7]
[344064457,1733268677293,-500.0,0.00030136,7]
[344064458,1733268677303,-664.32,0.00030136,7]
[344064459,1733268677312,-2256.04,0.00030136,7]
[344064460,1733268677322,-587.26,0.00030136,7]
[344064461,1733268677331,-714.18,0.00030136,7]
[344064462,1733268677341,-500.0,0.00030136,7]
[344064463,1733268677351,-638.54,0.00030136,7]
[344064464,1733268677360,-664.32,0.00030136,7]
[344064465,1733268677370,-2256.04,0.00030136,7]
[344064466,1733268677379,-587.26,0.00030136,7]
[344064467,1733268677388,-714.18,0.00030136,7]
[344064468,1733268677397,-500.0,0.00030136,7]
[344064469,1733268677407,-638.54,0.00030136,7]
[344064470,1733268677416,-2256.04,0.00030136,7]
[344064471,1733268677427,-587.26,0.00030136,7]
[344064472,1733268677440,-664.32,0.00030136,7]
[344064473,1733268677450,-714.18,0.00030136,7]
[344064474,1733268677460,-500.0,0.00030136,7]
[344064475,1733268677469,-638.54,0.00030136,7]
[344064476,1733268677478,-587.26,0.00030136,7]
[344064477,1733268677488,-714.18,0.00030136,7]
[344064478,1733268677499,-2256.04,0.00030136,7]
[344064479,1733268677509,-260.03343544,0.00030136,7]
[344064480,1733268677518,-664.32,0.00030136,7]
[344064481,1733268677527,-638.54,0.00030136,7]
[344064482,1733268677536,-587.26,0.00030136,7]
[344064483,1733268677545,-714.18,0.00030136,7]
[344064484,1733268677555,-1055.06539476,0.00030136,7]
[344064485,1733268677578,-1201.174256,0.00030136,7]
[344064486,1733268677587,-664.32,0.00030136,7]
[344064487,1733268677596,-638.54,0.00030136,7]
[344064488,1733268677606,-500.0,0.00030136,7]
[344064489,1733268677616,-587.26,0.00030136,7]
[344064490,1733268677626,-714.18,0.00030136,7]
[344064491,1733268677635,-664.46506687,0.00030136,7]
[344064492,1733268677645,-638.54,0.00030136,7]
[344064493,1733268677654,-500.0,0.00030136,7]
[344064494,1733268677663,-587.26,0.00030136,7]
[344064495,1733268677673,-714.18,0.00030136,7]
[344064496,1733268677683,-638.54,0.00030136,7]
[344064497,1733268677695,-587.26,0.00030136,7]
[344064498,1733268677705,-714.18,0.00030136,7]
[344064499,1733268677714,-638.54,0.00030136,7]
[344064500,1733268677724,-587.26,0.00030136,7]
[344064501,1733268677733,-500.0,0.00030136,7]
[344064502,1733268677743,-714.18,0.00030136,7]
[344064503,1733268677752,-638.54,0.00030136,7]
[344064504,1733268677762,-500.0,0.00030136,7]
[344064505,1733268677771,-500.0,0.00030136,7]
[344064506,1733268677781,-714.18,0.00030136,7]
[344064507,1733268677790,-502.4611511,0.00030136,7]
[344064508,1733268677799,-64.61405133,0.00030136,7]
[344064509,1733268678120,-573.92594867,0.00030136,7]
[344064510,1733268678131,-297.69938486,0.00030136,7]
[344064511,1733268678141,-587.30799526,0.00030136,7]
[344064512,1733268678150,-316.91619347,0.00030136,7]
[344064513,1733268678167,-183.08380653,0.00030136,7]
[344064514,1733268678176,-66.66744347,0.00030136,7]
[344064515,1733268679526,1169.27083333,0.00026413,2]
[344064517,1733268735961,2090.4051,0.00027525,30]
[344064518,1733268737392,1037.28618083,0.00024953,5]
[344064550,1733269219250,233.21719638,0.00023,60]
[344064575,1733269465206,162.030593,0.00013973,2]
[344064576,1733269493197,465.37160536,0.000309,120]
[344064577,1733269493218,507.92121464,0.000309,120]
[344064582,1733269540080,-3104.14273824,0.00024326,5]
[344064583,1733269540102,-468.6191553,0.00024571,2]
[344064584,1733269540122,-1214.6920014,0.00024571,2]
[344064585,1733269540145,-300.0,0.00025316,2]
[344064586,1733269540165,-8362.0,0.00025316,2]
[344064587,1733269540186,-34548.9136679,0.00025318,2]
[344064588,1733269540206,-168.554242,0.00025553,2]
[344064589,1733269540226,-9762.24021155,0.00025642,2]
[344064595,1733269640335,-437.65108368,0.00025318,2]
[344064596,1733269640356,-118.11408321,0.00025642,2]
[344064597,1733269641105,-1221.77378933,0.00025642,2]
[344064598,1733269642094,-809.0152461,0.00025642,2]
[344064615,1733269649105,-343.47402861,0.00025642,2]
[344064616,1733269649125,-296.776603,0.00025773,2]
[344064617,1733269649146,-400.842374,0.00026393,2]
[344064618,1733269649170,-1169.27083333,0.00026558,2]
[344064619,1733269649192,-296.776603,0.00026727,2]
[344064620,1733269649213,-300.0,0.00026941,2]
[344064621,1733269649234,-300.0,0.00026941,2]
[344064622,1733269649254,-7607.40860576,0.00026942,2]
[344064632,1733269747095,-1169.27083333,0.00025642,2]
[344064633,1733269747119,-300.0,0.00026941,2]
[344064634,1733269747141,-300.0,0.00026941,2]
[344064635,1733269747162,-17292.59139424,0.00026942,2]
[344064636,1733269747183,-1523.5388216,0.000272,2]
[344064637,1733269747204,-296.776603,0.0002768,2]
[344064638,1733269747225,-171.143493,0.00027733,2]
[344064639,1733269782616,1169.27083333,0.00025642,2]
[344064657,1733269831759,-197.851068,0.00028659,2]
[344064659,1733269831768,-171.143493,0.0002877,2]
[344064661,1733269831778,-153.0,0.00029151,30]
[344064663,1733269831788,-153.0,0.00029151,30]
[344064665,1733269831800,-153.0,0.00029151,30]
[344064667,1733269831810,-428.548861,0.00029151,30]
[344064669,1733269831820,-153.0,0.00029241,30]
[344064671,1733269831830,-300.0,0.00029424,2]
[344064673,1733269831839,-153.0,0.00029425,30]
[344064675,1733269831848,-213.1484039,0.00029425,30]
[344064677,1733269831857,-258.2031213,0.00029425,30]
[344064679,1733269831869,-305.3460728,0.00029425,30]
[344064681,1733269831878,-153.0,0.00029425,30]
[344064683,1733269831887,-153.0,0.00029425,30]
[344064685,1733269831897,-213.1484039,0.00029425,30]
[344064687,1733269831906,-213.1484039,0.00029425,30]
[344064689,1733269831915,-305.3460728,0.00029425,30]
[344064691,1733269831925,-153.0,0.00029425,30]
[344064693,1733269831934,-153.0,0.00029425,30]
[344064695,1733269831943,-213.1484039,0.00029425,30]
[344064697,1733269831953,-212.6177399,0.00029425,30]
[344064700,1733269831963,-458.3316158,0.00029425,30]
[344064701,1733269831972,-1521.71321941,0.00029624,2]
[344064704,1733269831982,-6666.0,0.00029724,2]
[344064705,1733269831991,-171.143493,0.00029807,2]
[344064708,1733269832000,-500.0,0.00029823,2]
[344064709,1733269832010,-324.0,0.0003,2]
[344064712,1733269832019,-156.0,0.0003,2]
[344064714,1733269832028,-406.0,0.00030036,2]
[344064716,1733269832037,-1115.1030204,0.00030036,2]
[344064718,1733269832046,-2164.85261007,0.00030036,2]
[344064719,1733269832055,-150.0,0.000301,2]
[344064722,1733269832065,-688.86,0.00030126,3]
[344064724,1733269832076,-1291.55,0.00030126,10]
[344064726,1733269832085,-340.38674103,0.00030135,2]
[344064728,1733269832095,-316.7910986,0.00030135,2]
[344064730,1733269832103,-357.87347543,0.00030135,2]
[344064732,1733269832113,-500.0,0.00030135,2]
[344064734,1733269832123,-617.73078716,0.00030135,2]
[344064736,1733269832134,-500.0,0.00030135,2]
[344064738,1733269832144,-500.0,0.00030135,2]
[344064740,1733269832153,-275.5179056,0.00030135,2]
[344064742,1733269832162,-500.0,0.00030135,2]
[344064744,1733269832171,-500.0,0.00030135,2]
[344064746,1733269832180,-274.90200065,0.00030135,2]
[344064748,1733269832190,-500.0,0.00030135,2]
[344064750,1733269832199,-500.0,0.00030135,2]
[344064752,1733269832208,-500.0,0.00030135,2]
[344064754,1733269832217,-309.57935192,0.00030135,2]
[344064756,1733269832227,-500.0,0.00030135,2]
[344064758,1733269832236,-500.0,0.00030135,2]
[344064760,1733269832245,-500.0,0.00030135,2]
[344064762,1733269832255,-500.0,0.00030136,7]
[344064764,1733269832265,-500.0,0.00030136,7]
[344064766,1733269832274,-500.0,0.00030136,7]
[344064768,1733269832283,-500.0,0.00030136,7]
[344064770,1733269832292,-500.0,0.00030136,7]
[344064772,1733269832302,-500.0,0.00030136,7]
[344064774,1733269832311,-500.0,0.00030136,7]
[344064776,1733269832320,-500.0,0.00030136,7]
[344064778,1733269832329,-500.0,0.00030136,7]
[344064780,1733269832339,-500.0,0.00030136,7]
[344064782,1733269832348,-500.0,0.00030136,7]
[344064784,1733269832357,-500.0,0.00030136,7]
[344064786,1733269832369,-500.0,0.00030136,7]
[344064788,1733269832379,-500.0,0.00030136,7]
[344064790,1733269832388,-500.0,0.00030136,7]
[344064792,1733269832397,-513.04353009,0.00030136,7]
[344064794,1733269832406,-500.0,0.00030136,7]
[344064796,1733269832416,-500.0,0.00030136,7]
[344064798,1733269832425,-500.0,0.00030136,7]
[344064800,1733269832434,-500.0,0.00030136,7]
[344064802,1733269832446,-500.0,0.00030136,7]
[344064804,1733269832455,-503.14415575,0.00030136,7]
[344064806,1733269832464,-500.0,0.00030136,7]
[344064808,1733269832473,-500.0,0.00030136,7]
[344064810,1733269832483,-500.0,0.00030136,7]
[344064812,1733269832492,-500.0,0.00030136,7]
[344064814,1733269832502,-500.0,0.00030136,7]
[344064816,1733269832511,-468.91678169,0.00030136,7]
[344064819,1733269832527,-31.08321831,0.00030136,7]
[344064821,1733269832537,-500.0,0.00030136,7]
[344064823,1733269832546,-500.0,0.00030136,7]
[344064825,1733269832555,-500.0,0.00030136,7]
[344064827,1733269832565,-500.0,0.00030136,7]
[344064829,1733269832574,-608.73884615,0.00030136,7]
[344064831,1733269832583,-500.0,0.00030136,7]
[344064833,1733269832592,-500.0,0.00030136,7]
[344064835,1733269832601,-500.0,0.00030136,7]
[344064837,1733269832611,-500.0,0.00030136,7]
[344064839,1733269832621,-474.83267413,0.00030136,7]
[344064841,1733269832631,-633.54,0.00030136,7]
[344064843,1733269832639,-633.54,0.00030136,7]
[344064845,1733269832648,-633.54,0.00030136,7]
[344064847,1733269832658,-633.54,0.00030136,7]
[344064849,1733269832667,-633.54,0.00030136,7]
[344064851,1733269832677,-633.54,0.00030136,7]
[344064853,1733269832686,-500.0,0.00030136,7]
[344064855,1733269832695,-633.54,0.00030136,7]
[344064857,1733269832705,-500.0,0.00030136,7]
[344064859,1733269832714,-633.54,0.00030136,7]
[344064861,1733269832724,-500.0,0.00030136,7]
[344064863,1733269832734,-633.54,0.00030136,7]
[344064865,1733269832743,-500.0,0.00030136,7]
[344064867,1733269832753,-633.54,0.00030136,7]
[344064869,1733269832763,-500.0,0.00030136,7]
[344064871,1733269832772,-633.54,0.00030136,7]
[344064873,1733269832782,-500.0,0.00030136,7]
[344064875,1733269832792,-633.54,0.00030136,7]
[344064877,1733269832802,-166.18470547,0.00030136,7]
[344064879,1733269832811,-633.54,0.00030136,7]
[344064882,1733269832822,-500.0,0.00030136,7]
[344064884,1733269832832,-633.54,0.00030136,7]
[344064885,1733269832841,-500.83489714,0.00030136,7]
[344064887,1733269832851,-633.54,0.00030136,7]
[344064889,1733269832860,-633.54,0.00030136,7]
[344064891,1733269832871,-633.54,0.00030136,7]
[344064893,1733269832881,-633.54,0.00030136,7]
[344064895,1733269832890,-633.54,0.00030136,7]
[344064897,1733269832899,-500.0,0.00030136,7]
[344064899,1733269832908,-633.54,0.00030136,7]
[344064901,1733269832917,-500.0,0.00030136,7]
[344064903,1733269832927,-633.54,0.00030136,7]
[344064905,1733269832936,-200.95201779,0.00030136,7]
[344064906,1733269832945,-633.54,0.00030136,7]
[344064908,1733269832955,-633.54,0.00030136,7]
[344064910,1733269832964,-633.6473492,0.00030136,7]
[344064912,1733269832974,-569.36,0.00030136,7]
[344064914,1733269832982,-569.36,0.00030136,7]
[344064916,1733269832992,-569.36,0.00030136,7]
[344064918,1733269833001,-569.36,0.00030136,7]
[344064920,1733269833010,-569.36,0.00030136,7]
[344064922,1733269833019,-569.36,0.00030136,7]
[344064924,1733269833029,-569.36,0.00030136,7]
[344064926,1733269833039,-569.36,0.00030136,7]
[344064927,1733269833048,-569.36,0.00030136,7]
[344064929,1733269833058,-569.36,0.00030136,7]
[344064930,1733269833068,-602.31500376,0.00030136,7]
[344064931,1733269833078,-569.36,0.00030136,7]
[344064932,1733269833088,-569.36,0.00030136,7]
[344064934,1733269833097,-569.36,0.00030136,7]
[344064936,1733269833107,-569.36,0.00030136,7]
[344064938,1733269833118,-569.36,0.00030136,7]
[344064939,1733269833127,-569.36,0.00030136,7]
[344064940,1733269833137,-569.36,0.00030136,7]
[344064941,1733269833146,-569.36,0.00030136,7]
[344064942,1733269833157,-500.0,0.00030136,7]
[344064943,1733269833167,-569.36,0.00030136,7]
[344064944,1733269833176,-500.0,0.00030136,7]
[344064945,1733269833185,-569.36,0.00030136,7]
[344064946,1733269833195,-500.0,0.00030136,7]
[344064947,1733269833205,-569.36,0.00030136,7]
[344064948,1733269833215,-500.0,0.00030136,7]
[344064949,1733269833225,-273.8688444,0.00030136,7]
[344064950,1733269833235,-569.36,0.00030136,7]
[344064951,1733269833245,-569.36,0.00030136,7]
[344064952,1733269833255,-569.49611458,0.00030136,7]
[344064953,1733269833266,-500.0,0.00030136,7]
[344064954,1733269833276,-500.0,0.00030136,7]
[344064955,1733269833286,-532.6359017,0.00030136,7]
[344064956,1733269833297,-500.0,0.00030136,7]
[344064957,1733269833307,-500.0,0.00030136,7]
[344064958,1733269833317,-506.64302431,0.00030136,7]
[344064959,1733269833327,-500.0,0.00030136,7]
[344064960,1733269833336,-500.0,0.00030136,7]
[344064961,1733269833346,-500.0,0.00030136,7]
[344064962,1733269833355,-500.0,0.00030136,7]
[344064963,1733269833365,-501.19677556,0.00030136,7]
[344064964,1733269833375,-500.0,0.00030136,7]
[344064965,1733269833385,-500.0,0.00030136,7]
[344064966,1733269833394,-500.0,0.00030136,7]
[344064967,1733269833404,-500.0,0.00030136,7]
[344064968,1733269833413,-500.0,0.00030136,7]
[344064969,1733269833422,-511.71328693,0.00030136,7]
[344064970,1733269833431,-18.77727351,0.00030136,7]
[344064971,1733269833464,-481.72616711,0.00030136,7]
[344064972,1733269833474,-500.0,0.00030136,7]
[344064973,1733269833483,-500.0,0.00030136,7]
[344064974,1733269833493,-500.0,0.00030136,7]
[344064975,1733269833502,-500.0,0.00030136,7]
[344064976,1733269833511,-500.0,0.00030136,7]
[344064977,1733269833521,-500.0,0.00030136,7]
[344064978,1733269833529,-500.0,0.00030136,7]
[344064979,1733269833540,-500.0,0.00030136,7]
[344064980,1733269833549,-228.73451143,0.00030136,7]
[344064981,1733269833558,-500.0,0.00030136,7]
[344064982,1733269833567,-500.0,0.00030136,7]
[344064983,1733269833576,-500.0,0.00030136,7]
[344064984,1733269833586,-495.76882146,0.00030136,7]
[344064985,1733269833599,-4.23117854,0.00030136,7]
[344064986,1733269833609,-500.0,0.00030136,7]
[344064987,1733269833620,-500.0,0.00030136,7]
[344064988,1733269833630,-500.0,0.00030136,7]
[344064989,1733269833639,-500.0,0.00030136,7]
[344064990,1733269833649,-500.0,0.00030136,7]
[344064991,1733269833658,-500.0,0.00030136,7]
[344064992,1733269833668,-500.0,0.00030136,7]
[344064993,1733269833678,-500.0,0.00030136,7]
[344064994,1733269833688,-500.0,0.00030136,7]
[344064995,1733269833698,-500.0,0.00030136,7]
[344064996,1733269833708,-500.0,0.00030136,7]
[344064997,1733269833717,-500.0,0.00030136,7]
[344064998,1733269833727,-500.0,0.00030136,7]
[344064999,1733269833737,-500.0,0.00030136,7]
[344065000,1733269833747,-500.0,0.00030136,7]
[344065001,1733269833756,-500.0,0.00030136,7]
[344065002,1733269833766,-500.0,0.00030136,7]
[344065003,1733269833776,-500.0,0.00030136,7]
[344065004,1733269833787,-500.0,0.00030136,7]
[344065005,1733269833799,-500.0,0.00030136,7]
[344065006,1733269833808,-500.0,0.00030136,7]
[344065007,1733269833818,-500.0,0.00030136,7]
[344065008,1733269833828,-500.0,0.00030136,7]
[344065009,1733269833838,-500.0,0.00030136,7]
[344065010,1733269833847,-500.0,0.00030136,7]
[344065011,1733269833857,-500.0,0.00030136,7]
[344065012,1733269833866,-518.243179,0.00030136,7]
[344065013,1733269833876,-500.0,0.00030136,7]
[344065014,1733269833886,-500.0,0.00030136,7]
[344065015,1733269833895,-500.0,0.00030136,7]
[344065016,1733269833905,-500.0,0.00030136,7]
[344065017,1733269833914,-500.0,0.00030136,7]
[344065018,1733269833924,-500.0,0.00030136,7]
[344065019,1733269833933,-296.85433811,0.00030136,7]
[344065020,1733269833942,-192.35770724,0.00030136,7]
[344065021,1733269833952,-500.0,0.00030136,7]
[344065022,1733269833961,-500.0,0.00030136,7]
[344065023,1733269833971,-500.0,0.00030136,7]
[344065024,1733269833980,-500.0,0.00030136,7]
[344065025,1733269833990,-690.85,0.00030136,7]
[344065026,1733269833999,-500.0,0.00030136,7]
[344065027,1733269834009,-690.85,0.00030136,7]
[344065028,1733269834019,-500.0,0.00030136,7]
[344065029,1733269834029,-690.85,0.00030136,7]
[344065030,1733269834038,-690.85,0.00030136,7]
[344065031,1733269834048,-690.85,0.00030136,7]
[344065032,1733269834058,-690.85,0.00030136,7]
[344065033,1733269834068,-690.85,0.00030136,7]
[344065034,1733269834077,-690.85,0.00030136,7]
[344065035,1733269834087,-500.47062956,0.00030136,7]
[344065036,1733269834096,-690.85,0.00030136,7]
[344065037,1733269834106,-690.85,0.00030136,7]
[344065038,1733269834116,-690.85,0.00030136,7]
[344065039,1733269834126,-690.85,0.00030136,7]
[344065040,1733269834135,-690.85,0.00030136,7]
[344065041,1733269834145,-690.85,0.00030136,7]
[344065042,1733269834154,-690.85,0.00030136,7]
[344065043,1733269834163,-690.85,0.00030136,7]
[344065044,1733269834173,-690.85,0.00030136,7]
[344065045,1733269834182,-690.85,0.00030136,7]
[344065046,1733269834191,-690.85,0.00030136,7]
[344065047,1733269834201,-690.85,0.00030136,7]
[344065048,1733269834210,-500.0,0.00030136,7]
[344065049,1733269834219,-690.85,0.00030136,7]
[344065050,1733269834229,-500.0,0.00030136,7]
[344065051,1733269834238,-690.85,0.00030136,7]
[344065052,1733269834248,-458.58578459,0.00030136,7]
[344065053,1733269834257,-257.36592089,0.00030136,7]
[344065054,1733269834438,-28.67510879,0.00030136,7]
[344065055,1733269834450,-404.80897032,0.00030136,7]
[344065056,1733269834460,-500.0,0.00030136,7]
[344065057,1733269834469,-500.0,0.00030136,7]
[344065058,1733269834479,-500.0,0.00030136,7]
[344065059,1733269834488,-500.0,0.00030136,7]
[344065060,1733269834498,-500.0,0.00030136,7]
[344065061,1733269834507,-500.0,0.00030136,7]
[344065062,1733269834517,-500.0,0.00030136,7]
[344065063,1733269834526,-500.0,0.00030136,7]
[344065064,1733269834536,-500.0,0.00030136,7]
[344065065,1733269834545,-281.02281056,0.00030136,7]
[344065066,1733269834554,-500.0,0.00030136,7]
[344065067,1733269834564,-303.62339712,0.00030136,7]
[344065068,1733269834573,-690.98487956,0.00030136,7]
[344065069,1733269834582,-500.0,0.00030136,7]
[344065070,1733269834592,-500.0,0.00030136,7]
[344065071,1733269834602,-500.0,0.00030136,7]
[344065072,1733269834611,-450.82994248,0.00030136,7]
[344065073,1733269834623,-506.95308298,0.00030136,7]
[344065074,1733269834633,-533.65180515,0.00030136,7]
[344065075,1733269834643,-1916.63,0.00030136,7]
[344065076,1733269834653,-1916.63,0.00030136,7]
[344065077,1733269834663,-1916.63,0.00030136,7]
[344065078,1733269834673,-500.0,0.00030136,7]
[344065079,1733269834682,-500.0,0.00030136,7]
[344065080,1733269834691,-1916.63,0.00030136,7]
[344065081,1733269834701,-1916.63,0.00030136,7]
[344065082,1733269834710,-501.61793442,0.00030136,7]
[344065083,1733269834720,-1916.63,0.00030136,7]
[344065084,1733269834729,-500.0,0.00030136,7]
[344065085,1733269834739,-1916.63,0.00030136,7]
[344065086,1733269834748,-500.0,0.00030136,7]
[344065087,1733269834758,-1916.63,0.00030136,7]
[344065088,1733269834768,-500.0,0.00030136,7]
[344065089,1733269834777,-1916.63,0.00030136,7]
[344065090,1733269834788,-500.0,0.00030136,7]
[344065091,1733269834801,-1916.63,0.00030136,7]
[344065092,1733269834811,-500.0,0.00030136,7]
[344065093,1733269834821,-1916.63,0.00030136,7]
[344065094,1733269834830,-464.00142561,0.00030136,7]
[344065095,1733269834981,-1916.63,0.00030136,7]
[344065096,1733269834997,-1916.63,0.00030136,7]
[344065097,1733269835007,-1916.63,0.00030136,7]
[344065098,1733269835016,-1916.63,0.00030136,7]
[344065099,1733269835026,-500.0,0.00030136,7]
[344065100,1733269835035,-1916.63,0.00030136,7]
[344065101,1733269835045,-500.0,0.00030136,7]
[344065102,1733269835054,-1916.63,0.00030136,7]
[344065103,1733269835063,-500.0,0.00030136,7]
[344065104,1733269835072,-1916.63,0.00030136,7]
[344065105,1733269835082,-500.0,0.00030136,7]
[344065106,1733269835091,-1916.63,0.00030136,7]
[344065107,1733269835101,-1916.63,0.00030136,7]
[344065108,1733269835110,-500.0,0.00030136,7]
[344065109,1733269835121,-1916.63,0.00030136,7]
[344065110,1733269835130,-500.0,0.00030136,7]
[344065111,1733269835140,-1916.63,0.00030136,7]
[344065112,1733269835149,-500.0,0.00030136,7]
[344065113,1733269835159,-1916.63,0.00030136,7]
[344065114,1733269835168,-500.0,0.00030136,7]
[344065115,1733269835177,-500.0,0.00030136,7]
[344065116,1733269835186,-1916.72952944,0.00030136,7]
[344065117,1733269835196,-500.0,0.00030136,7]
[344065118,1733269835207,-500.0,0.00030136,7]
[344065119,1733269835216,-501.70127421,0.00030136,7]
[344065120,1733269835226,-500.0,0.00030136,7]
[344065121,1733269835235,-500.0,0.00030136,7]
[344065122,1733269835244,-500.0,0.00030136,7]
[344065123,1733269835253,-325.89,0.00030136,7]
[344065124,1733269835265,-507.4523226,0.00030136,7]
[344065125,1733269835274,-347.96248879,0.00030136,7]
[344065126,1733269835284,-500.0,0.00030136,7]
[344065127,1733269835298,-500.0,0.00030136,7]
[344065128,1733269835307,-508.41419684,0.00030136,7]
[344065129,1733269835317,-1379.52,0.00030136,7]
[344065130,1733269835327,-1379.52,0.00030136,7]
[344065131,1733269835336,-1379.52,0.00030136,7]
[344065132,1733269835345,-509.52645695,0.00030136,7]
[344065133,1733269835355,-1379.52,0.00030136,7]
[344065134,1733269835364,-1379.52,0.00030136,7]
[344065135,1733269835375,-500.0,0.00030136,7]
[344065136,1733269835384,-1379.52,0.00030136,7]
[344065137,1733269835393,-1379.52,0.00030136,7]
[344065138,1733269835402,-1379.52,0.00030136,7]
[344065139,1733269835412,-1379.52,0.00030136,7]
[344065140,1733269835421,-1379.52,0.00030136,7]
[344065141,1733269835430,-763.71468158,0.00030136,7]
[344065148,1733269837781,-344.43,0.00030126,3]
[344065149,1733269837794,-291.76738912,0.00030136,7]
[344065150,1733269837804,-615.80531842,0.00030136,7]
[344065151,1733269837813,-1379.52,0.00030136,7]
[344065152,1733269837823,-1379.52,0.00030136,7]
[344065153,1733269837833,-1065.9,0.00030136,7]
[344065154,1733269837842,-1379.52,0.00030136,7]
[344065155,1733269837851,-1065.9,0.00030136,7]
[344065156,1733269837860,-1379.52,0.00030136,7]
[344065157,1733269837873,-1065.9,0.00030136,7]
[344065158,1733269837882,-500.0,0.00030136,7]
[344065159,1733269837891,-1379.52,0.00030136,7]
[344065160,1733269837900,-1065.9,0.00030136,7]
[344065161,1733269837909,-500.0,0.00030136,7]
[344065162,1733269837918,-1379.52,0.00030136,7]
[344065163,1733269837927,-1065.9,0.00030136,7]
[344065164,1733269837936,-500.0,0.00030136,7]
[344065165,1733269837945,-500.0,0.00030136,7]
[344065166,1733269837954,-1379.52,0.00030136,7]
[344065167,1733269837963,-1065.9,0.00030136,7]
[344065168,1733269837972,-500.0,0.00030136,7]
[344065169,1733269837981,-513.72155373,0.00030136,7]
[344065170,1733269837991,-1374.79886029,0.00030136,7]
[344065171,1733269838074,-4.72113971,0.00030136,7]
[344065172,1733269838084,-57.0305455,0.00030136,7]
[344065174,1733269839839,-813.17957643,0.00030136,7]
[344065175,1733269839851,-195.68987807,0.00030136,7]
[344065176,1733269839866,-509.01262864,0.00030136,7]
[344065177,1733269839878,-1379.52,0.00030136,7]
[344065178,1733269839887,-1065.9,0.00030136,7]
[344065179,1733269839896,-139.89222701,0.00030136,7]
[344065444,1733269842866,-1076.29,0.00030126,10]
[344065446,1733269842878,-1239.62777299,0.00030136,7]
[344065448,1733269842888,-1065.9,0.00030136,7]
[344065450,1733269842897,-1379.52,0.00030136,7]
[344065452,1733269842906,-348.78189332,0.00030136,7]
[344065454,1733269842918,-717.11810668,0.00030136,7]
[344065457,1733269842927,-1379.52,0.00030136,7]
[344065458,1733269842937,-461.09430442,0.00030136,7]
[344065477,1733269843064,-604.80569558,0.00030136,7]